[Event "GrandPrix_29.05"]
[Site "Chess.com"]
[Date "2020.05.29"]
[Round "4"]
[White "Olga_Girya"]
[Black "GadimbayliA"]
[Result "1/2-1/2"]
[WhiteElo "2359"]
[BlackElo "2510"]
[TimeControl "600+2"]
[EndTime "11:02:55 PDT"]
[Termination "Game drawn by agreement"]

1. d4 {[%clk 0:10:01.9]} 1... d5 {[%clk 0:10:00.5]} 2. c4 {[%clk 0:10:00]} 2...
e5 {[%clk 0:10:01.1]} 3. dxe5 {[%clk 0:09:57.5]} 3... d4 {[%clk 0:10:03]} 4. Nf3
{[%clk 0:09:58.2]} 4... Nc6 {[%clk 0:10:03.7]} 5. a3 {[%clk 0:09:52.1]} 5...
Nge7 {[%clk 0:10:04.7]} 6. b4 {[%clk 0:09:52.4]} 6... Ng6 {[%clk 0:10:05.5]} 7.
Bb2 {[%clk 0:09:50.7]} 7... a5 {[%clk 0:10:06.5]} 8. b5 {[%clk 0:09:47.5]} 8...
Ncxe5 {[%clk 0:10:07.4]} 9. Nxe5 {[%clk 0:06:52.6]} 9... Nxe5 {[%clk 0:10:09.3]}
10. Qxd4 {[%clk 0:06:53.3]} 10... Qxd4 {[%clk 0:10:08.7]} 11. Bxd4 {[%clk
0:06:54.3]} 11... Nxc4 {[%clk 0:10:10.3]} 12. e3 {[%clk 0:06:54.3]} 12... Be6
{[%clk 0:10:11.2]} 13. a4 {[%clk 0:04:32.5]} 13... Bb4+ {[%clk 0:07:09.3]} 14.
Nc3 {[%clk 0:03:20.5]} 14... O-O-O {[%clk 0:06:19.1]} 15. O-O-O {[%clk
0:02:56.5]} 15... f6 {[%clk 0:05:23.8]} 16. Be2 {[%clk 0:02:36.6]} 16... Rd7
{[%clk 0:04:35]} 17. Na2 {[%clk 0:01:35.1]} 17... Ba3+ {[%clk 0:04:12.3]} 18.
Kc2 {[%clk 0:01:35.8]} 18... Rhd8 {[%clk 0:03:31.3]} 19. Nc1 {[%clk 0:01:19.5]}
19... Bb4 {[%clk 0:03:17.1]} 20. Nd3 {[%clk 0:00:31.6]} 20... Bf8 {[%clk
0:02:41.5]} 21. Nf4 {[%clk 0:00:28.6]} 21... Bf5+ {[%clk 0:02:18.7]} 22. Kb3
{[%clk 0:00:28.9]} 22... Ne5 {[%clk 0:02:17.3]} 23. f3 {[%clk 0:00:12]} 23...
Ng6 {[%clk 0:01:12.8]} 24. Nxg6 {[%clk 0:00:12.2]} 24... Bxg6 {[%clk 0:01:14.7]}
25. Bc3 {[%clk 0:00:11.6]} 25... b6 {[%clk 0:01:04.2]} 26. Rxd7 {[%clk
0:00:11.1]} 26... Rxd7 {[%clk 0:01:06.1]} 27. Rd1 {[%clk 0:00:12.2]} 27... Bf7+
{[%clk 0:01:07.4]} 28. Kc2 {[%clk 0:00:12.7]} 28... Rxd1 {[%clk 0:01:08.1]} 29.
Bxd1 {[%clk 0:00:13.1]} 29... Bc4 {[%clk 0:01:09.5]} 30. f4 {[%clk 0:00:13.1]}
30... Bc5 {[%clk 0:01:01.7]} 31. Kd2 {[%clk 0:00:14.4]} 31... Bd5 {[%clk
0:01:00.3]} 32. g3 {[%clk 0:00:14.6]} 32... Kd7 {[%clk 0:00:58.3]} 33. Bc2
{[%clk 0:00:15.9]} 33... h6 {[%clk 0:00:58.7]} 34. Bf5+ {[%clk 0:00:16.9]} 34...
Kd6 {[%clk 0:00:58.4]} 35. Bc2 {[%clk 0:00:17.5]} 35... Bc4 {[%clk 0:00:53.4]}
36. Bd1 {[%clk 0:00:18]} 36... c6 {[%clk 0:00:53.7]} 37. bxc6 {[%clk 0:00:18.4]}
37... Kxc6 {[%clk 0:00:55.6]} 38. Bf3+ {[%clk 0:00:19.6]} 38... Kd6 {[%clk
0:00:56.6]} 39. Kc2 {[%clk 0:00:21.1]} 39... Bf7 {[%clk 0:00:55.6]} 40. e4
{[%clk 0:00:18.2]} 40... Bg1 {[%clk 0:00:42.4]} 41. e5+ {[%clk 0:00:18.6]} 41...
Ke7 {[%clk 0:00:43.7]} 42. exf6+ {[%clk 0:00:19.4]} 42... gxf6 {[%clk
0:00:45.6]} 43. h3 {[%clk 0:00:20]} 43... Be8 {[%clk 0:00:44.5]} 44. Kb3 {[%clk
0:00:19.5]} 44... Bf7+ {[%clk 0:00:45.7]} 45. Kc2 {[%clk 0:00:19.8]} 45... Be8
{[%clk 0:00:47.2]} 46. Kb3 {[%clk 0:00:20.6]} 46... Bf2 {[%clk 0:00:38.3]} 47.
g4 {[%clk 0:00:21.2]} 47... Be3 {[%clk 0:00:37.9]} 48. f5 {[%clk 0:00:20.3]}
48... Bf4 {[%clk 0:00:33.8]} 49. Bd5 {[%clk 0:00:20.8]} 49... Kd6 {[%clk
0:00:28.9]} 50. Bg8 {[%clk 0:00:20.5]} 50... Be5 {[%clk 0:00:28.8]} 51. Bd2
{[%clk 0:00:21.4]} 51... h5 {[%clk 0:00:14.9]} 52. gxh5 {[%clk 0:00:21.8]} 52...
Bxh5 {[%clk 0:00:16.8]} 53. Bc4 {[%clk 0:00:16.9]} 53... Bd1+ {[%clk 0:00:14.8]}
54. Ka3 {[%clk 0:00:17.8]} 54... Kc5 {[%clk 0:00:12.2]} 55. Bb3 {[%clk
0:00:12.6]} 55... Be2 {[%clk 0:00:06.6]} 56. Be3+ {[%clk 0:00:08.6]} 56... Kc6
{[%clk 0:00:07]} 57. Bc2 {[%clk 0:00:07.3]} 57... Bf3 {[%clk 0:00:04]} 58. h4
{[%clk 0:00:07]} 58... b5 {[%clk 0:00:04.6]} 59. axb5+ {[%clk 0:00:07.1]} 59...
Kxb5 {[%clk 0:00:06.5]} 60. Bd3+ {[%clk 0:00:08.6]} 60... Kc6 {[%clk 0:00:06]}
61. Bd2 {[%clk 0:00:09.1]} 61... Bc7 {[%clk 0:00:04.4]} 62. Bc3 {[%clk
0:00:09.5]} 62... Bd8 {[%clk 0:00:05.7]} 63. Ka4 {[%clk 0:00:09.6]} 63... Kc5
{[%clk 0:00:06.6]} 64. Bc2 {[%clk 0:00:09.5]} 64... Kc4 {[%clk 0:00:06.4]} 65.
Bd2 {[%clk 0:00:05.9]} 65... Bc6+ {[%clk 0:00:07.5]} 66. Ka3 {[%clk 0:00:06.6]}
66... Be7+ {[%clk 0:00:08.7]} 67. Kb2 {[%clk 0:00:07.8]} 67... a4 {[%clk
0:00:07.8]} 68. h5 {[%clk 0:00:09]} 68... a3+ {[%clk 0:00:09.7]} 69. Ka2 {[%clk
0:00:10]} 69... Bf8 {[%clk 0:00:07.7]} 70. h6 {[%clk 0:00:10.5]} 70... Kd4
{[%clk 0:00:06.8]} 71. Bb3 {[%clk 0:00:11.1]} 71... Be4 {[%clk 0:00:05.8]} 72.
h7 {[%clk 0:00:08.4]} 72... Bg7 {[%clk 0:00:07]} 73. Bh6 {[%clk 0:00:08.6]}
73... Bh8 {[%clk 0:00:07.4]} 74. Be6 {[%clk 0:00:09.7]} 74... Ke5 {[%clk
0:00:05.7]} 75. Kxa3 {[%clk 0:00:10]} 75... Bxf5 {[%clk 0:00:07.1]} 76. Bxf5
{[%clk 0:00:08.9]} 76... Kxf5 {[%clk 0:00:09]} 77. Kb3 {[%clk 0:00:09.9]} 77...
Kg6 {[%clk 0:00:10.1]} 78. Bf4 {[%clk 0:00:11.1]} 78... Kxh7 {[%clk 0:00:10.4]}
79. Kc2 {[%clk 0:00:12.5]} 79... Kg6 {[%clk 0:00:11.8]} 80. Kd3 {[%clk
0:00:13.9]} 80... f5 {[%clk 0:00:13.2]} 81. Ke2 {[%clk 0:00:14.6]} 81... Bf6
{[%clk 0:00:14.6]} 82. Kf3 {[%clk 0:00:15.8]} 82... Bg5 {[%clk 0:00:16.5]} 83.
Bxg5 {[%clk 0:00:15.2]} 1/2-1/2

[Event "GrandPrix_29.05"]
[Site "Chess.com"]
[Date "2020.05.29"]
[Round "4"]
[White "sergiochess83"]
[Black "etserga"]
[Result "1-0"]
[WhiteElo "2696"]
[BlackElo "2309"]
[TimeControl "600+2"]
[EndTime "11:03:05 PDT"]
[Termination "sergiochess83 won by resignation"]

1. e4 {[%clk 0:10:01.9]} 1... c6 {[%clk 0:09:57.5]} 2. d4 {[%clk 0:09:59.9]}
2... d5 {[%clk 0:09:57.4]} 3. e5 {[%clk 0:09:59.9]} 3... Bf5 {[%clk 0:09:56.4]}
4. Nf3 {[%clk 0:10:01.3]} 4... e6 {[%clk 0:09:55.8]} 5. Be2 {[%clk 0:10:02.8]}
5... Ne7 {[%clk 0:09:55.6]} 6. O-O {[%clk 0:10:01.4]} 6... Nc8 {[%clk
0:09:55.1]} 7. a4 {[%clk 0:09:54.1]} 7... Be7 {[%clk 0:09:52.3]} 8. Nbd2 {[%clk
0:09:45.4]} 8... Nd7 {[%clk 0:09:48.5]} 9. c3 {[%clk 0:09:43]} 9... O-O {[%clk
0:09:38.1]} 10. a5 {[%clk 0:09:43]} 10... c5 {[%clk 0:09:30.5]} 11. Re1 {[%clk
0:09:07.3]} 11... a6 {[%clk 0:09:25.1]} 12. Nf1 {[%clk 0:08:34]} 12... Na7
{[%clk 0:09:17.5]} 13. Ng3 {[%clk 0:08:32.2]} 13... Bg6 {[%clk 0:09:14.5]} 14.
dxc5 {[%clk 0:08:24.9]} 14... Bxc5 {[%clk 0:09:07.1]} 15. Bd3 {[%clk 0:08:17]}
15... Nc6 {[%clk 0:08:57]} 16. b4 {[%clk 0:08:12.6]} 16... Ba7 {[%clk
0:08:41.4]} 17. Ra2 {[%clk 0:08:02.6]} 17... Qc7 {[%clk 0:08:06.6]} 18. Rae2
{[%clk 0:07:40.1]} 18... Rac8 {[%clk 0:07:04.7]} 19. h4 {[%clk 0:07:23.6]} 19...
d4 {[%clk 0:06:48.3]} 20. Bxg6 {[%clk 0:07:16.3]} 20... fxg6 {[%clk 0:06:27.5]}
21. Nxd4 {[%clk 0:06:27.3]} 21... Bxd4 {[%clk 0:05:05]} 22. cxd4 {[%clk
0:06:29.2]} 22... Nxb4 {[%clk 0:05:04.9]} 23. Ba3 {[%clk 0:06:15.4]} 23... Qc4
{[%clk 0:03:50.8]} 24. Qa4 {[%clk 0:04:22.8]} 24... Nc2 {[%clk 0:03:20.8]} 25.
Qxd7 {[%clk 0:02:47.6]} 25... Nxa3 {[%clk 0:03:16.9]} 26. Qxb7 {[%clk
0:02:47.3]} 26... Nb5 {[%clk 0:02:22.4]} 27. Qxa6 {[%clk 0:02:22.4]} 27... Ra8
{[%clk 0:02:05.4]} 28. Qb6 {[%clk 0:02:23.4]} 28... Rfb8 {[%clk 0:02:03.3]} 29.
Qc5 {[%clk 0:02:23.8]} 29... Qxd4 {[%clk 0:01:59.9]} 30. Ne4 {[%clk 0:01:38]}
30... Rxa5 {[%clk 0:01:41]} 31. Rb1 {[%clk 0:01:38.9]} 31... Qd3 {[%clk
0:01:11.5]} 32. Ree1 {[%clk 0:01:23.2]} 32... Rba8 {[%clk 0:01:04.7]} 33. Rbd1
{[%clk 0:01:09.5]} 33... Qb3 {[%clk 0:00:57.5]} 34. Rd7 {[%clk 0:00:52.7]} 34...
R5a7 {[%clk 0:00:37.6]} 35. Rxa7 {[%clk 0:00:34.9]} 35... Nxa7 {[%clk
0:00:37.4]} 36. Ra1 {[%clk 0:00:29.5]} 36... Qb2 {[%clk 0:00:29.6]} 37. Qc3
{[%clk 0:00:16.9]} 37... Qxc3 {[%clk 0:00:29.2]} 38. Nxc3 {[%clk 0:00:17.6]}
38... Rc8 {[%clk 0:00:29.8]} 39. Ne4 {[%clk 0:00:15.8]} 39... Nc6 {[%clk
0:00:29.4]} 40. f4 {[%clk 0:00:16.6]} 40... Nd4 {[%clk 0:00:29.1]} 41. g3 {[%clk
0:00:14]} 41... h6 {[%clk 0:00:29]} 42. Kf2 {[%clk 0:00:12.5]} 42... Rc2+ {[%clk
0:00:26.9]} 43. Ke3 {[%clk 0:00:11.8]} 43... Nf5+ {[%clk 0:00:27.1]} 44. Kf3
{[%clk 0:00:13.1]} 44... Rb2 {[%clk 0:00:27.3]} 45. Ra3 {[%clk 0:00:13.2]} 45...
Rb1 {[%clk 0:00:26.3]} 46. Nc5 {[%clk 0:00:12.4]} 46... Nd4+ {[%clk 0:00:26.1]}
47. Ke4 {[%clk 0:00:12.5]} 47... Nf5 {[%clk 0:00:25.5]} 48. Nxe6 {[%clk
0:00:11.9]} 48... Re1+ {[%clk 0:00:24.8]} 49. Kf3 {[%clk 0:00:12.8]} 49... h5
{[%clk 0:00:24.9]} 50. Ng5 {[%clk 0:00:12.9]} 50... Kf8 {[%clk 0:00:24.2]} 51.
Ra8+ {[%clk 0:00:13.3]} 51... Ke7 {[%clk 0:00:24.5]} 52. Ra7+ {[%clk 0:00:15.2]}
52... Ke8 {[%clk 0:00:25.6]} 53. Ra3 {[%clk 0:00:14.6]} 53... Nd4+ {[%clk
0:00:24.3]} 54. Kf2 {[%clk 0:00:13.9]} 54... Re2+ {[%clk 0:00:25.4]} 55. Kf1
{[%clk 0:00:15.1]} 55... Rb2 {[%clk 0:00:26.1]} 56. Ne4 {[%clk 0:00:14.3]} 56...
Nf5 {[%clk 0:00:24.4]} 57. Ra6 {[%clk 0:00:11.6]} 57... Ne3+ {[%clk 0:00:22]}
58. Ke1 {[%clk 0:00:11.3]} 58... Rc2 {[%clk 0:00:22.2]} 59. Rxg6 {[%clk
0:00:07.4]} 59... Kf7 {[%clk 0:00:21.2]} 60. Rd6 {[%clk 0:00:07.3]} 60... Ng2+
{[%clk 0:00:21.3]} 61. Kf1 {[%clk 0:00:08.4]} 61... Ne3+ {[%clk 0:00:22.4]} 62.
Kg1 {[%clk 0:00:09.6]} 62... Rg2+ {[%clk 0:00:20.4]} 63. Kh1 {[%clk 0:00:10.8]}
63... Re2 {[%clk 0:00:21]} 64. Ng5+ {[%clk 0:00:11.1]} 64... Ke7 {[%clk
0:00:20.6]} 65. Rd3 {[%clk 0:00:13]} 65... Ng4 {[%clk 0:00:20.1]} 66. Kg1 {[%clk
0:00:13.8]} 66... Re1+ {[%clk 0:00:20]} 67. Kg2 {[%clk 0:00:14.8]} 67... Re2+
{[%clk 0:00:20.8]} 68. Kf3 {[%clk 0:00:14.8]} 68... Ra2 {[%clk 0:00:21.3]} 69.
e6 {[%clk 0:00:14.7]} 69... Nh2+ {[%clk 0:00:19.6]} 70. Ke4 {[%clk 0:00:15.7]}
70... Ng4 {[%clk 0:00:20.4]} 71. Kf5 {[%clk 0:00:16.5]} 71... Re2 {[%clk
0:00:18.2]} 72. Rd7+ {[%clk 0:00:16.9]} 72... Ke8 {[%clk 0:00:19.2]} 73. Rxg7
{[%clk 0:00:16.3]} 73... Re3 {[%clk 0:00:19.5]} 74. Ra7 {[%clk 0:00:16.2]} 74...
Rxg3 {[%clk 0:00:19.9]} 75. Ne4 {[%clk 0:00:16.5]} 75... Nh6+ {[%clk 0:00:14.5]}
76. Ke5 {[%clk 0:00:16.9]} 76... Re3 {[%clk 0:00:10.2]} 77. Ra8+ {[%clk
0:00:16.7]} 77... Ke7 {[%clk 0:00:10.3]} 78. Ra7+ {[%clk 0:00:18.6]} 78... Ke8
{[%clk 0:00:11.2]} 79. f5 {[%clk 0:00:19.9]} 79... Ng4+ {[%clk 0:00:08.3]} 80.
Kf4 {[%clk 0:00:20.8]} 80... Re1 {[%clk 0:00:09.2]} 81. f6 {[%clk 0:00:19.1]}
81... Rxe4+ {[%clk 0:00:06.9]} 82. Kxe4 {[%clk 0:00:20.2]} 82... Nxf6+ {[%clk
0:00:08]} 83. Kf5 {[%clk 0:00:21.8]} 83... Nd5 {[%clk 0:00:09.1]} 84. Kg5 {[%clk
0:00:22.3]} 84... Kf8 {[%clk 0:00:08.6]} 85. Rf7+ {[%clk 0:00:21.6]} 85... Ke8
{[%clk 0:00:08.4]} 86. Kxh5 {[%clk 0:00:23.5]} 86... Ne3 {[%clk 0:00:09]} 87.
Kg5 {[%clk 0:00:24.1]} 1-0

[Event "GrandPrix_29.05"]
[Site "Chess.com"]
[Date "2020.05.29"]
[Round "4"]
[White "DaggiGretarsson"]
[Black "VMikhalevski"]
[Result "0-1"]
[WhiteElo "2142"]
[BlackElo "2450"]
[TimeControl "600+2"]
[EndTime "11:03:33 PDT"]
[Termination "VMikhalevski won on time"]

1. c4 {[%clk 0:09:56.7]} 1... Nf6 {[%clk 0:09:56.8]} 2. Nc3 {[%clk 0:09:56.8]}
2... d5 {[%clk 0:09:56.6]} 3. cxd5 {[%clk 0:09:48.8]} 3... Nxd5 {[%clk
0:09:57.1]} 4. Qa4+ {[%clk 0:09:48.7]} 4... Nc6 {[%clk 0:09:47.2]} 5. Nf3 {[%clk
0:09:32.9]} 5... Nb6 {[%clk 0:09:26.1]} 6. Qc2 {[%clk 0:09:28.1]} 6... e5 {[%clk
0:09:21.2]} 7. e3 {[%clk 0:09:02.5]} 7... Bd6 {[%clk 0:08:33.6]} 8. a3 {[%clk
0:08:36.4]} 8... O-O {[%clk 0:08:18.9]} 9. b4 {[%clk 0:07:39]} 9... Re8 {[%clk
0:08:16.2]} 10. d3 {[%clk 0:07:28.9]} 10... Bf5 {[%clk 0:06:55.8]} 11. Be2
{[%clk 0:07:05.3]} 11... Qd7 {[%clk 0:06:51.9]} 12. O-O {[%clk 0:07:01.7]} 12...
Rad8 {[%clk 0:06:41.5]} 13. Ne4 {[%clk 0:06:20.3]} 13... a5 {[%clk 0:06:08.5]}
14. Nc5 {[%clk 0:06:02.5]} 14... Qc8 {[%clk 0:05:45.4]} 15. bxa5 {[%clk
0:03:30.5]} 15... Nxa5 {[%clk 0:05:42.3]} 16. Bd2 {[%clk 0:03:30.8]} 16... Nc6
{[%clk 0:05:05.4]} 17. Ne4 {[%clk 0:03:25.8]} 17... Bf8 {[%clk 0:04:45.4]} 18.
Rfb1 {[%clk 0:03:19.8]} 18... Bg6 {[%clk 0:04:30.7]} 19. a4 {[%clk 0:03:17.7]}
19... Nd5 {[%clk 0:04:25.2]} 20. a5 {[%clk 0:03:14.5]} 20... Ncb4 {[%clk
0:03:32.3]} 21. Qc4 {[%clk 0:03:08.9]} 21... c5 {[%clk 0:03:13.3]} 22. Rc1
{[%clk 0:03:07.8]} 22... Na6 {[%clk 0:02:51.8]} 23. Nh4 {[%clk 0:02:47.4]} 23...
Qe6 {[%clk 0:02:25.9]} 24. Nxg6 {[%clk 0:02:45.9]} 24... hxg6 {[%clk 0:02:20]}
25. Rab1 {[%clk 0:02:39.4]} 25... Ndb4 {[%clk 0:02:15.1]} 26. Rb3 {[%clk
0:01:59.4]} 26... Rd7 {[%clk 0:01:53.3]} 27. g4 {[%clk 0:00:45.9]} 27... Qxc4
{[%clk 0:01:47.1]} 28. Rxc4 {[%clk 0:00:46.4]} 28... Red8 {[%clk 0:01:47.9]} 29.
Bxb4 {[%clk 0:00:41.5]} 29... cxb4 {[%clk 0:01:45]} 30. Rc2 {[%clk 0:00:18.6]}
30... Rd5 {[%clk 0:01:40.6]} 31. Ra2 {[%clk 0:00:13.1]} 31... Rc8 {[%clk
0:01:41]} 32. Nd2 {[%clk 0:00:13.5]} 32... Rc3 {[%clk 0:01:23.8]} 33. Rb1 {[%clk
0:00:06.8]} 33... Rdc5 {[%clk 0:01:14.1]} 34. Kg2 {[%clk 0:00:04.6]} 34... Rc2
{[%clk 0:01:12.1]} 35. Rbb2 {[%clk 0:00:05.8]} 35... Rxb2 {[%clk 0:01:10.8]} 36.
Rxb2 {[%clk 0:00:07.1]} 36... Rxa5 {[%clk 0:01:11.9]} 37. Nc4 {[%clk 0:00:08.5]}
37... Rc5 {[%clk 0:01:04.1]} 38. d4 {[%clk 0:00:09]} 38... exd4 {[%clk 0:01:04]}
39. exd4 {[%clk 0:00:10]} 39... Rd5 {[%clk 0:01:04]} 40. Rd2 {[%clk 0:00:10]}
40... Rd8 {[%clk 0:00:51.1]} 41. Na5 {[%clk 0:00:05.4]} 41... Nc5 {[%clk
0:00:44.3]} 42. Bf3 {[%clk 0:00:05.2]} 42... Ne6 {[%clk 0:00:38.4]} 43. Nb3
{[%clk 0:00:04.6]} 43... Nf4+ {[%clk 0:00:35.4]} 44. Kf1 {[%clk 0:00:05.6]}
44... b6 {[%clk 0:00:34]} 45. d5 {[%clk 0:00:05.8]} 45... Bd6 {[%clk 0:00:32.2]}
46. Rd4 {[%clk 0:00:06.7]} 46... Rc8 {[%clk 0:00:30.5]} 47. Bd1 {[%clk
0:00:06.5]} 47... Rc3 {[%clk 0:00:29]} 48. h4 {[%clk 0:00:04.2]} 48... Rh3
{[%clk 0:00:28.4]} 49. Ke1 {[%clk 0:00:05.5]} 49... Rxh4 {[%clk 0:00:28.3]} 50.
Kd2 {[%clk 0:00:06.9]} 50... Rh2 {[%clk 0:00:28.4]} 51. Ke3 {[%clk 0:00:07.7]}
51... g5 {[%clk 0:00:29]} 52. Bf3 {[%clk 0:00:06.4]} 52... Kf8 {[%clk
0:00:25.5]} 53. Rd2 {[%clk 0:00:06.8]} 53... Rh3 {[%clk 0:00:25.1]} 54. Ke4
{[%clk 0:00:07.8]} 54... g6 {[%clk 0:00:25.1]} 55. Nd4 {[%clk 0:00:08.6]} 55...
Ke7 {[%clk 0:00:23.9]} 56. Ra2 {[%clk 0:00:08.8]} 56... Rh8 {[%clk 0:00:22]} 57.
Ra7+ {[%clk 0:00:09.5]} 57... Kf6 {[%clk 0:00:22.5]} 58. Nc6 {[%clk 0:00:08.6]}
58... Re8+ {[%clk 0:00:22.2]} 59. Kd4 {[%clk 0:00:09.8]} 59... Re1 {[%clk
0:00:12.3]} 60. Kc4 {[%clk 0:00:10.2]} 60... Rf1 {[%clk 0:00:10.6]} 61. Nd8
{[%clk 0:00:10.8]} 61... Be7 {[%clk 0:00:10.2]} 62. Nc6 {[%clk 0:00:11.5]} 62...
Bc5 {[%clk 0:00:10.8]} 63. Nd8 {[%clk 0:00:11.7]} 63... Rxf2 {[%clk 0:00:11.2]}
64. Rxf7+ {[%clk 0:00:12]} 64... Ke5 {[%clk 0:00:12.3]} 65. Nc6+ {[%clk
0:00:12.4]} 65... Kd6 {[%clk 0:00:13.5]} 66. Rf6+ {[%clk 0:00:13.7]} 66... Kd7
{[%clk 0:00:14.3]} 67. Ne5+ {[%clk 0:00:14.2]} 67... Ke7 {[%clk 0:00:12.7]} 68.
Rf7+ {[%clk 0:00:12.3]} 68... Kd6 {[%clk 0:00:10.6]} 69. Nd7 {[%clk 0:00:06.3]}
69... Rxf3 {[%clk 0:00:10.1]} 70. Nf6 {[%clk 0:00:07.5]} 70... Rc3+ {[%clk
0:00:10]} 71. Kb5 {[%clk 0:00:08.5]} 71... b3 {[%clk 0:00:10.6]} 72. Ne4+ {[%clk
0:00:08.8]} 72... Kxd5 {[%clk 0:00:11.1]} 73. Nxc3+ {[%clk 0:00:10]} 73... Kd4
{[%clk 0:00:12.7]} 74. Nb1 {[%clk 0:00:10.4]} 74... b2 {[%clk 0:00:12.8]} 75.
Rd7+ {[%clk 0:00:08.6]} 75... Ke3 {[%clk 0:00:12.7]} 76. Rd2 {[%clk 0:00:09.4]}
76... Nd3 {[%clk 0:00:13.4]} 77. Kc4 {[%clk 0:00:09.4]} 77... Ne5+ {[%clk
0:00:14.2]} 78. Kd5 {[%clk 0:00:10.5]} 78... Nxg4 {[%clk 0:00:14]} 79. Rxb2
{[%clk 0:00:11.8]} 79... Nf6+ {[%clk 0:00:14.1]} 80. Ke6 {[%clk 0:00:12.4]}
80... Ne4 {[%clk 0:00:15.1]} 81. Rb3+ {[%clk 0:00:12.1]} 81... Kd4 {[%clk
0:00:13.3]} 82. Na3 {[%clk 0:00:06.3]} 82... Bxa3 {[%clk 0:00:08.3]} 83. Rxa3
{[%clk 0:00:07.3]} 83... g4 {[%clk 0:00:09.5]} 84. Kf7 {[%clk 0:00:06.1]} 84...
g5 {[%clk 0:00:09.7]} 85. Kg6 {[%clk 0:00:06.9]} 85... g3 {[%clk 0:00:10.6]} 86.
Ra1 {[%clk 0:00:04]} 86... Ke3 {[%clk 0:00:10.9]} 87. Kf5 {[%clk 0:00:03.9]}
87... g2 {[%clk 0:00:11.7]} 0-1